bitfinex-derivatives/quotes_SOLF0:USTF0_20260202
["timestamp","ask_amount","ask_price","bid_price","bid_amount"]
[1770062714628,34.60225174,104.06,104.0,8.6603]
[1770062715532,8.6554,104.07,104.01,8.6599]
[1770062715728,444.17318557,104.09,104.0,134.729]
[1770062715729,42.00704486,104.09,104.0,134.729]
[1770062715928,42.00704486,104.09,104.0,416.649]
[1770062717333,43.26275929,104.09,104.03,8.6586]
[1770062717527,34.60905929,104.09,104.01,134.7148]
[1770062717732,34.60905929,104.09,104.02,134.7031]
[1770062717933,43.26275929,104.09,104.01,134.7148]
[1770062718135,34.60905929,104.09,104.0,416.649]
[1770062718633,43.26285929,104.09,104.03,8.6586]
[1770062719135,43.26285929,104.09,104.04,8.6577]
[1770062719430,34.60905929,104.09,104.04,8.6577]
[1770062719738,42.00704486,104.09,104.02,8.6587]
[1770062720034,34.61472656,104.06,104.0,281.92]
[1770062720229,34.61472656,104.06,103.98,282.6]
[1770062720430,34.61472656,104.06,103.99,8.6613]
[1770062720634,43.27102656,104.06,103.98,282.6]
[1770062721434,16.05338557,104.07,103.99,134.7427]
[1770062721631,42.01271213,104.09,104.0,134.7296]
[1770062721832,34.61402434,104.08,103.99,417.8627]
[1770062722231,8.6562,104.06,103.99,283.12]
[1770062722936,8.6562,104.06,104.0,8.6605]
[1770062723333,8.6562,104.06,103.99,283.12]
[1770062723937,43.26922434,104.08,104.01,8.6603]
[1770062724135,43.26922434,104.08,104.0,134.7253]
[1770062724832,43.26922434,104.08,104.02,8.6594]
[1770062725234,43.2591673,104.07,104.01,8.6602]
[1770062725433,34.6037673,104.07,104.01,8.6602]
[1770062726341,8.6564,104.06,104.01,8.6602]
[1770062728534,50.65725287,104.07,104.01,8.6602]
[1770062728739,43.2592673,104.07,104.02,8.6595]
[1770062729938,43.2592673,104.07,104.01,8.6602]
[1770062730136,8.6547,104.08,104.0,134.7283]
[1770062731341,43.24955786,104.08,104.02,8.6594]
[1770062731536,34.59485786,104.06,103.97,134.7586]
[1770062731734,41.9868285,104.05,103.97,419.6186]
[1770062731932,41.9868285,104.05,103.95,134.7866]
[1770062732137,41.9868285,104.03,103.94,134.8029]
[1770062732338,34.58884293,104.0,103.91,134.8448]
[1770062732645,34.58884293,104.0,103.91,419.8048]
[1770062733041,43.25004293,104.0,103.94,8.666]
[1770062733640,34.58884293,104.0,103.91,419.8048]
[1770062734341,34.58884293,104.0,103.92,134.8304]
[1770062734647,7.39798557,104.01,103.92,134.8304]
[1770062735548,34.59664386,104.04,103.95,134.7943]
[1770062736344,34.59664386,104.04,103.96,420.2566]
[1770062736740,34.59664386,104.04,103.96,285.48]
[1770062736944,34.60160912,104.03,103.95,285.7]
[1770062737145,41.99959469,104.03,103.95,285.7]
[1770062737344,34.60160912,104.06,103.97,134.7682]
[1770062737550,34.60160912,104.06,103.98,420.7756]
[1770062737852,43.23067773,104.05,103.98,294.682]
[1770062738046,34.57357773,104.04,103.98,294.682]
[1770062738441,34.57357773,104.04,103.98,286.02]
[1770062738845,43.23157773,104.04,103.98,294.6828]
[1770062739546,34.57357773,104.04,103.99,8.662]
[1770062739748,34.57357773,104.04,103.96,134.7711]
[1770062740049,34.57001137,104.06,103.97,422.1049]
[1770062740448,43.22701137,104.06,104.0,8.6611]
[1770062741349,34.57001137,104.06,104.01,8.6603]
[1770062742248,34.57001137,104.06,103.99,8.6614]
[1770062742854,41.98342325,104.05,103.99,8.6614]
[1770062743552,50.64052325,104.05,103.99,8.6614]
[1770062744053,50.59811104,104.07,104.0,8.661]
[1770062744249,43.20012547,104.07,103.99,422.3563]
[1770062744844,36.94755033,104.1,104.0,134.7258]
[1770062745044,34.54412547,104.1,104.02,134.7024]
[1770062746353,43.19772547,104.1,104.04,8.6577]
[1770062748357,34.54412547,104.1,104.04,8.6577]
[1770062748859,34.54412547,104.1,104.05,8.6568]
[1770062749954,43.19702547,104.1,104.04,8.6578]
[1770062750151,43.19702547,104.1,104.0,142.12378557]
[1770062750152,34.53677631,104.09,104.0,134.7258]
[1770062750355,34.53677631,104.09,103.97,134.7587]
[1770062750356,34.53677631,104.06,103.97,134.7587]
[1770062750660,34.53677631,104.04,103.94,134.7989]
[1770062750851,41.93476188,104.03,103.94,288.0]
[1770062751051,34.53677631,103.99,103.9,134.8544]
[1770062751256,41.93476188,103.99,103.9,422.8344]
[1770062751553,50.59686188,103.99,103.92,8.6677]
[1770062754858,41.93476188,103.99,103.93,8.6669]
[1770062755160,34.53677631,103.99,103.93,8.6669]
[1770062756060,16.05878557,104.01,103.94,8.6661]
[1770062756363,34.50119158,104.02,103.94,287.86]
[1770062756557,34.50119158,104.02,103.92,422.6723]
[1770062756962,34.50119158,104.02,103.93,134.8202]
[1770062757159,34.50119158,104.02,103.94,134.8059]
[1770062757355,34.50119158,104.02,103.95,134.7932]
[1770062759957,34.51964665,104.02,103.95,134.794]
[1770062760151,34.51964665,104.02,103.98,8.6628]
[1770062760152,19.94084665,104.02,103.98,8.6628]
[1770062760356,9.79886599,104.08,103.99,269.4758]
[1770062760556,7.39447538,104.08,104.0,134.7289]
[1770062760759,16.04907538,104.08,104.01,8.6603]
[1770062761159,7.39447538,104.08,103.98,424.3949]
[1770062761663,7.39447538,104.06,103.98,424.3949]
[1770062762458,34.64285704,104.06,104.0,8.6609]
[1770062762963,34.64285704,104.06,104.01,8.6603]
[1770062765864,27.28922054,104.03,103.96,134.7738]
[1770062766063,27.28922054,104.03,103.94,134.7976]
[1770062766270,27.28922054,104.03,103.95,134.7933]
[1770062766568,27.28922054,104.03,103.96,134.7807]
[1770062766768,27.28922054,104.03,103.94,134.7976]
[1770062767166,27.28922054,104.02,103.95,134.794]
[1770062768064,27.31095729,104.01,103.96,8.6645]
[1770062768770,27.31095729,104.0,103.94,8.6654]
[1770062770967,7.39447538,104.02,103.95,134.7934]
[1770062771168,34.70721724,104.02,103.95,134.7934]
[1770062771466,27.31274186,104.04,103.96,134.7801]
[1770062771665,27.31274186,104.04,103.97,134.7681]
[1770062772066,27.31274186,104.04,103.97,427.1081]
[1770062772264,27.31274186,104.04,104.0,8.6611]
[1770062772471,34.70377685,104.07,103.99,134.7421]
[1770062772666,27.30930147,104.06,103.99,134.7421]
[1770062772873,27.30930147,104.06,103.98,134.7551]
[1770062773570,27.30930147,104.06,104.01,8.6602]
[1770062774663,27.30408784,104.09,104.02,134.7013]
[1770062775170,27.30408784,104.09,104.04,8.6577]
[1770062776067,27.30677162,104.11,104.04,134.6774]
[1770062776569,27.30677162,104.11,104.03,427.7702]
[1770062776874,27.30677162,104.11,104.04,134.6775]
[1770062777068,27.30677162,104.11,104.06,8.6561]
[1770062777371,27.30677162,104.11,104.04,134.6775]
[1770062777572,27.30677162,104.11,104.05,134.6637]
[1770062777776,27.30677162,104.11,104.05,8.6562]
[1770062777973,27.30677162,104.11,104.04,134.6771]
[1770062778774,27.30677162,104.11,104.06,8.6561]
[1770062782072,27.30677162,104.11,104.07,8.6553]
[1770062782571,27.25112775,104.13,104.08,8.6544]
[1770062782971,27.25112775,104.15,104.08,134.6216]
[1770062783373,27.25112775,104.18,104.12,134.5728]
[1770062783774,27.25112775,104.18,104.13,8.6502]
[1770062783976,7.39447538,104.23,104.14,134.5481]
[1770062784376,7.39447538,104.23,104.15,8.6485]
[1770062784574,7.39447538,104.23,104.14,134.5481]
[1770062785176,7.39447538,104.23,104.14,8.6488]
[1770062785177,134.4366,104.23,104.14,8.6488]
[1770062785478,7.39447538,104.23,104.14,134.5461]
[1770062785772,7.39447538,104.24,104.16,134.5222]
[1770062785974,17.67680327,104.25,104.17,134.5088]
[1770062786172,17.67680327,104.25,104.16,134.5222]
[1770062786374,25.07127865,104.24,104.15,429.1947]
[1770062786571,17.67680327,104.23,104.14,134.5461]
[1770062786774,17.67680327,104.21,104.12,429.2446]
[1770062786978,17.67680327,104.2,104.14,8.6494]
[1770062787377,17.67680327,104.2,104.13,134.5594]
[1770062788172,17.66880111,104.19,104.11,134.577]
[1770062788478,17.66880111,104.19,104.12,134.5733]
[1770062788677,17.66880111,104.19,104.11,134.577]
[1770062788874,17.66880111,104.18,104.12,8.6505]
[1770062789175,17.66880111,104.18,104.11,134.5851]
[1770062789371,25.06327649,104.2,104.12,134.5744]
[1770062789576,17.66880111,104.19,104.11,134.5851]
[1770062789778,17.66880111,104.19,104.1,429.9499]
[1770062790173,26.31420111,104.19,104.12,8.6511]
[1770062790372,26.31420111,104.19,104.1,134.5899]
[1770062790373,17.66880111,104.19,104.11,134.5851]
[1770062791379,17.66880111,104.19,104.13,8.6502]
[1770062791980,17.73006662,104.18,104.11,134.5851]
[1770062793177,17.73006662,104.21,104.12,134.5695]
[1770062793378,17.73006662,104.2,104.12,134.5695]
[1770062793578,17.73006662,104.18,104.1,134.5899]
[1770062793979,17.73006662,104.18,104.11,134.5868]
[1770062794378,17.73006662,104.18,104.13,8.6503]
[1770062795777,17.74332716,104.17,104.11,8.6515]
[1770062796484,25.13780254,104.17,104.11,8.6515]
[1770062796781,17.74332716,104.16,104.11,8.6515]
[1770062798284,17.74332716,104.16,104.09,8.653]
[1770062798482,17.74332716,104.16,104.09,134.6065]
[1770062798687,17.74332716,104.16,104.1,134.5998]
[1770062799581,17.73882402,104.18,104.1,134.5998]
[1770062799782,17.73882402,104.16,104.09,432.2465]
[1770062800180,17.73882402,104.16,104.1,8.6521]
[1770062801684,17.73882402,104.16,104.11,8.652]
[1770062802892,17.73882402,104.16,104.1,8.6528]
[1770062803989,33.76874351,104.15,104.08,306.654]
[1770062805290,33.76874351,104.15,104.04,134.6677]
[1770062805291,7.39447538,104.13,104.04,134.6677]
[1770062805491,17.72526813,104.1,104.02,134.7025]
[1770062805996,17.72526813,104.1,104.03,134.6908]
[1770062807795,17.70944724,104.12,104.04,134.6767]
[1770062808593,17.63845936,104.14,104.06,134.6504]
[1770062808790,7.39447538,104.17,104.08,134.6256]
[1770062808989,25.03293474,104.17,104.08,433.8256]
[1770062809194,17.59728528,104.16,104.09,134.6127]
[1770062809497,17.59728528,104.19,104.1,134.596]
[1770062809795,26.24348528,104.18,104.09,434.1127]
[1770062810397,17.59727973,104.16,104.07,134.63]
[1770062810693,17.59727973,104.15,104.07,299.66]
[1770062810996,17.59727973,104.14,104.07,299.66]
[1770062811189,8.6506,104.13,104.07,299.66]
[1770062811388,8.6506,104.13,104.04,134.6689]
[1770062811389,8.6506,104.13,104.05,134.6646]
[1770062811789,17.59727973,104.14,104.06,134.6496]
[1770062812199,17.59087203,104.16,104.07,134.6382]
[1770062812391,26.23877203,104.16,104.1,8.6528]
[1770062813301,17.59087203,104.16,104.11,8.6518]
[1770062813894,26.20948291,104.18,104.11,8.6518]
[1770062814296,26.20948291,104.18,104.12,8.6511]
[1770062815001,17.56258291,104.17,104.1,8.6524]
[1770062815396,17.56258291,104.16,104.05,134.6612]
[1770062815596,17.56258291,104.16,104.06,434.6114]
[1770062816304,8.6487,104.15,104.06,434.6114]
[1770062816503,26.20962003,104.15,104.06,434.6114]
[1770062816703,17.56092003,104.15,104.06,434.6114]
[1770062816903,8.6498,104.14,104.08,8.6537]
[1770062817105,17.56092003,104.15,104.07,134.6375]
[1770062817300,17.56092003,104.15,104.06,134.6514]
[1770062817505,17.56092003,104.15,104.06,434.9114]
[1770062818302,8.6495,104.14,104.08,8.6537]
[1770062818698,26.20654559,104.14,104.08,8.6537]
[1770062820208,8.6503,104.13,104.07,8.6553]
[1770062820408,17.5617352,104.12,104.02,134.6945]
[1770062820602,17.5617352,104.1,104.02,300.56]
[1770062820805,17.5617352,104.08,104.0,8.6603]
[1770062821006,17.5617352,104.08,104.01,134.7167]
[1770062821307,17.5617352,104.1,104.01,134.7167]
[1770062821506,26.2146352,104.1,104.02,134.7015]
[1770062821705,293.28,104.11,104.02,134.7015]
[1770062821905,310.839361,104.11,104.03,134.6908]
[1770062822099,17.559361,104.1,104.01,435.5167]
[1770062822307,17.559361,104.09,104.01,300.8]
[1770062822610,17.559361,104.09,104.03,8.6585]
[1770062822800,17.559361,104.09,104.02,269.3964]
[1770062823000,17.559361,104.11,104.02,269.3964]
[1770062823809,17.56551858,104.1,104.03,8.6586]
[1770062824010,17.56551858,104.1,104.02,134.7028]
[1770062824208,26.21841858,104.1,104.03,8.6586]
[1770062824410,17.56551858,104.1,104.01,300.8]
[1770062824603,152.18001858,104.09,103.98,142.13290508]
[1770062824809,17.56551858,104.08,103.99,301.36]
[1770062825008,17.56551858,104.07,104.0,8.6611]
[1770062825405,17.56551858,104.07,103.99,301.36]
[1770062825908,26.22081858,104.07,104.01,8.6602]
[1770062826707,8.6546,104.08,104.02,8.6593]
[1770062826912,24.93135481,104.1,104.01,134.7165]
[1770062827315,26.19704973,104.09,104.03,8.6586]
[1770062828108,8.6547,104.08,104.02,8.6595]
[1770062828307,8.6547,104.08,104.0,302.0]
[1770062829015,8.6554,104.07,104.01,8.6602]
[1770062831309,17.54304973,104.09,104.0,436.7279]
[1770062832112,310.26445868,104.11,104.02,134.7034]
[1770062832505,17.52445868,104.09,104.01,303.54]
[1770062834314,8.6547,104.08,104.02,8.6589]
[1770062835007,26.17825868,104.09,104.03,8.6586]
[1770062836017,26.17825868,104.09,104.04,8.6578]
[1770062837514,310.26810889,104.11,104.05,8.6569]
[1770062837714,17.41608413,104.13,104.04,134.6743]
[1770062838317,17.41608413,104.11,104.03,304.54]
[1770062838521,17.41608413,104.11,104.02,304.48]
[1770062838814,8.6545,104.08,104.02,313.1388]
[1770062840222,17.41608413,104.09,104.02,313.1388]
[1770062840223,8.6554,104.07,104.02,313.1388]
[1770062840416,17.39733841,104.07,103.99,134.7326]
[1770062840618,26.05443841,104.05,103.97,389.46209222]
[1770062840818,17.39733841,104.04,103.97,305.34]
[1770062841020,17.39733841,104.04,103.98,8.6627]
[1770062841417,33.44344349,104.04,103.96,134.7807]
[1770062841721,26.05513841,104.04,103.96,134.7807]
[1770062842422,17.39733841,104.04,103.98,8.6627]
[1770062843219,17.39733841,104.04,103.99,8.662]
[1770062846426,17.36426785,104.03,103.95,305.88]
[1770062847424,26.02366785,104.03,103.96,8.6645]
[1770062847823,26.02366785,104.03,103.94,440.6194]
[1770062848126,24.76001513,104.04,103.96,134.7814]
[1770062848722,24.76001513,104.04,103.99,8.662]
[1770062848924,24.76001513,104.06,103.97,134.7685]
[1770062849123,24.76001513,104.06,103.98,134.7549]
[1770062849424,17.37171005,104.06,103.98,134.7549]
[1770062849621,17.37171005,104.06,104.0,8.6603]
[1770062850329,17.37171005,104.06,104.01,8.66]
[1770062850720,17.36719781,104.04,103.97,134.7685]
[1770062850928,17.36719781,104.04,103.98,8.6621]
[1770062851422,17.36719781,104.04,103.99,8.6617]
[1770062852032,33.4212616,104.06,104.0,8.6611]
[1770062852520,17.37665652,104.04,103.96,440.9814]
[1770062853326,17.37665652,104.04,103.99,8.6619]
[1770062855427,17.39765984,104.03,103.98,8.6628]
[1770062855626,17.39765984,104.03,103.94,441.1583]
[1770062856227,17.40256131,104.01,103.92,134.824]
[1770062856426,17.40256131,104.01,103.93,134.8201]
[1770062857429,17.40256131,104.0,103.95,8.6653]
[1770062857625,7.38830508,104.02,103.93,134.8201]
[1770062857830,17.43236742,104.02,103.94,134.8043]
[1770062858024,24.8206725,104.04,103.96,134.7809]
[1770062858230,24.8206725,104.04,103.95,441.5731]
[1770062858427,33.4786725,104.04,103.98,8.6627]
[1770062859132,17.43236742,104.04,103.99,8.6619]
[1770062859334,17.43236742,104.04,103.97,134.7638]
[1770062860334,17.43236742,104.04,103.99,8.6619]
[1770062861234,17.43236742,104.04,103.97,134.7638]
[1770062861235,17.43236742,104.04,104.0,8.661]
[1770062861529,26.0532561,104.07,103.99,134.7369]
[1770062861827,17.3978561,104.07,104.0,8.661]
[1770062862033,26.03483409,104.05,103.97,134.7638]
[1770062862735,26.03483409,104.05,103.98,8.6621]
[1770062863339,17.37713409,104.05,103.97,134.7638]
[1770062864430,17.37713409,104.05,104.0,8.661]
[1770062865236,25.99797617,104.06,104.01,8.6603]
[1770062865435,17.34177617,104.06,104.01,8.6603]
[1770062868740,17.32136798,104.04,103.97,307.76]
[1770062868943,17.32136798,104.04,103.93,134.8115]
[1770062868944,24.70967306,104.01,103.93,134.8115]
[1770062869445,17.33505975,104.0,103.91,442.6571]
[1770062870942,8.662,103.99,103.93,8.6662]
[1770062871143,17.33505975,104.0,103.91,442.6571]
[1770062871841,25.99989814,103.99,103.91,442.6571]
[1770062872445,33.38820322,103.99,103.91,307.82]
[1770062873442,17.33769814,103.99,103.91,442.6594]
[1770062873643,16.04940508,104.01,103.92,134.8331]
[1770062873644,33.38724345,104.01,103.92,134.8331]
[1770062873947,33.38724345,104.01,103.93,134.818]
[1770062873948,25.99893837,104.01,103.93,134.818]
[1770062874445,17.33783837,104.01,103.95,8.6652]
[1770062877948,17.33783837,104.01,103.96,8.6645]
[1770062878751,33.39714477,104.03,103.97,8.6634]
[1770062880046,17.35013969,104.03,103.98,8.6628]
[1770062880951,26.00893969,104.03,103.96,8.6637]
[1770062881154,17.35083445,104.02,103.96,8.6637]
[1770062881449,17.35083445,104.01,103.95,8.6653]
[1770062882048,17.35083445,104.01,103.96,8.6644]
[1770062882252,24.73124787,104.03,103.94,444.2662]
[1770062882554,26.00174279,104.03,103.95,134.7938]
[1770062883356,26.00174279,104.03,103.97,8.6636]
[1770062883656,17.34294279,104.02,103.97,8.6636]
[1770062884157,17.3283094,104.04,103.97,134.7686]
[1770062884456,288.74,104.06,103.98,134.7556]
[1770062884457,17.3283094,104.06,103.98,134.7556]
[1770062884957,17.3283094,104.08,104.0,134.729]
[1770062885158,17.3283094,104.08,104.01,134.7157]
[1770062885560,17.3283094,104.1,104.04,8.6574]
[1770062885760,17.3283094,104.1,104.03,134.6889]
[1770062885948,25.9812094,104.1,104.04,8.6577]
[1770062886154,25.9812094,104.1,104.02,310.14]
[1770062886859,17.3283094,104.1,104.04,8.6578]
[1770062887858,17.3283094,104.1,104.05,8.6569]
[1770062889062,17.31806757,104.12,104.06,8.6561]
[1770062889767,17.31806757,104.12,104.07,8.6553]
[1770062890261,17.31348376,104.14,104.06,134.6488]
[1770062890459,17.31348376,104.14,104.05,134.6639]
[1770062890663,17.31348376,104.12,104.04,134.6774]
[1770062891655,17.2963596,104.11,104.04,8.657]
[1770062893158,25.9483596,104.11,104.04,8.657]
[1770062893863,17.30213407,104.09,104.0,134.7208]
[1770062894062,17.30213407,104.09,104.0,444.8608]
[1770062895454,17.30213407,104.09,104.02,134.7031]
[1770062895966,17.30213407,104.09,104.01,445.2528]
[1770062896260,17.30213407,104.09,104.02,134.7017]
[1770062896864,8.6529,104.1,104.02,134.7017]
[1770062897064,25.95349668,104.1,104.02,134.7017]
[1770062897461,25.95349668,104.1,104.04,8.6577]
[1770062898161,25.95349668,104.1,104.03,8.6586]
[1770062898366,25.93475006,104.09,104.03,8.6586]
[1770062898867,17.28105006,104.09,104.03,8.6586]
[1770062899063,17.28105006,104.09,104.02,134.7031]
[1770062899267,17.28105006,104.09,104.02,446.3031]
[1770062899468,17.28105006,104.11,104.02,446.3031]
[1770062900065,25.93335006,104.11,104.03,134.69]
[1770062900569,8.6512,104.12,104.04,134.6774]
[1770062900964,8.6512,104.12,104.04,446.9974]
[1770062902174,17.27886157,104.13,104.04,312.32]
[1770062902469,24.67877333,104.13,104.04,312.32]
[1770062902670,17.27399879,104.1,104.04,8.6577]
[1770062904472,25.92689879,104.1,104.04,8.6577]
[1770062905373,25.92689879,104.1,104.02,448.0031]
[1770062905374,17.27399879,104.1,104.05,8.6569]
[1770062905768,25.898286,104.12,104.06,8.6561]
[1770062906573,17.246986,104.12,104.07,8.6553]
[1770062906769,25.897186,104.14,104.06,134.6505]
[1770062907676,17.246986,104.14,104.08,134.6249]
[1770062907876,25.91890553,104.16,104.08,134.6249]
[1770062908074,17.27100553,104.16,104.1,8.6528]
[1770062908274,17.27100553,104.16,104.09,134.6128]
[1770062909074,17.27100553,104.18,104.12,8.6509]
[1770062910075,17.30440212,104.17,104.11,8.652]
[1770062910477,17.30440212,104.21,104.13,134.5577]
[1770062911378,17.30440212,104.21,104.15,134.5312]
[1770062911579,17.30440212,104.21,104.12,448.0532]
[1770062911775,17.24837142,104.2,104.12,448.2732]
[1770062912079,17.24837142,104.2,104.14,8.6495]
[1770062912281,17.24837142,104.2,104.13,134.5613]
[1770062912482,17.24837142,104.2,104.13,143.2108]
[1770062912677,17.24837142,104.2,104.12,448.2732]
[1770062912872,17.24837142,104.2,104.12,313.7]
[1770062914284,25.89307142,104.2,104.13,8.6503]
[1770062915983,17.24250669,104.19,104.13,8.6503]
[1770062916584,17.24250669,104.16,104.11,8.6516]
[1770062918875,24.64337069,104.19,104.12,8.6511]
[1770062919077,24.64337069,104.19,104.1,450.2996]
[1770062919276,17.24345893,104.19,104.11,134.5871]
[1770062919481,17.24345893,104.19,104.12,134.5737]
[1770062919781,17.24345893,104.19,104.11,450.3471]
[1770062920579,17.24345893,104.19,104.14,8.6494]
[1770062920784,24.63889879,104.21,104.13,134.5603]
[1770062920984,17.23898703,104.2,104.12,134.5732]
[1770062921181,17.23898703,104.2,104.15,8.6486]
[1770062922685,17.23898703,104.2,104.14,134.5475]
[1770062922981,17.25295702,104.22,104.16,8.6478]
[1770062924277,17.25255445,104.21,104.14,8.6487]
[1770062924477,17.25255445,104.2,104.12,134.5732]
[1770062925387,25.89715445,104.2,104.13,8.6503]
[1770062925688,17.25255445,104.2,104.12,134.5732]
[1770062926283,17.25255445,104.2,104.14,8.6495]
[1770062926782,25.89705445,104.2,104.13,8.6503]
[1770062927579,17.24516647,104.21,104.12,134.5737]
[1770062927783,17.24516647,104.21,104.13,134.5602]
[1770062927984,17.24516647,104.21,104.13,451.2602]
[1770062928580,17.24516647,104.2,104.15,8.6487]
[1770062928880,17.24516647,104.2,104.13,316.7]
[1770062929082,17.24516647,104.2,104.14,8.6487]
[1770062929083,25.88976647,104.2,104.14,8.6487]
[1770062929280,17.24516647,104.19,104.13,316.7]
[1770062930287,17.24516647,104.19,104.14,8.6494]
[1770062930593,17.24935711,104.17,104.08,151.9236]
[1770062930890,17.24935711,104.19,104.14,8.6492]
[1770062931191,7.39991176,104.21,104.13,134.5578]
[1770062931192,17.24935711,104.21,104.13,134.5578]
[1770062931385,17.24935711,104.21,104.13,452.8178]
[1770062931692,17.24935711,104.21,104.13,318.26]
[1770062932692,25.90223754,104.2,104.14,8.6494]
[1770062932892,17.25743754,104.2,104.14,8.6494]
[1770062934790,17.25743754,104.2,104.15,8.6487]
[1770062935294,17.25743754,104.2,104.13,318.26]
[1770062936396,25.90203754,104.2,104.14,8.6495]
[1770062936695,17.25743754,104.2,104.13,318.26]
[1770062937587,17.25743754,104.2,104.15,8.6486]
[1770062937788,24.71169294,104.22,104.14,134.5479]
[1770062938192,24.71169294,104.22,104.14,456.1279]
[1770062938494,17.31178118,104.21,104.14,456.1279]
[1770062938695,17.31178118,104.21,104.16,8.6478]
[1770062939189,17.31178118,104.21,104.15,8.6487]
[1770062940288,17.31677418,104.19,104.14,8.6495]
[1770062941194,17.31677418,104.21,104.15,8.6485]
[1770062943300,25.96057418,104.21,104.15,8.6485]
[1770062944792,25.96057418,104.21,104.13,134.5594]
[1770062944793,17.32914939,104.19,104.12,323.1]
[1770062945899,17.3241165,104.18,104.1,134.5998]
[1770062946100,17.3241165,104.18,104.11,323.34]
[1770062946608,20.27521543,104.18,104.11,323.34]
[1770062946906,28.92161543,104.18,104.11,323.34]
[1770062947107,2.95109893,104.17,104.11,323.34]
[1770062947605,20.27521543,104.18,104.12,8.6509]
[1770062949603,20.2964942,104.2,104.13,2.95109893]
[1770062949907,20.2964942,104.2,104.13,327.97109893]
[1770062950706,17.34539527,104.2,104.13,327.97109893]
[1770062951305,20.2964942,104.2,104.15,8.6486]
[1770062951902,20.31212862,104.19,104.13,325.02]
[1770062953110,20.31212862,104.19,104.14,8.6495]
[1770062954807,2.95109893,104.17,104.1,137.54979893]
[1770062955010,2.95109893,104.17,104.1,464.96979893]
[1770062955210,2.95109893,104.15,104.09,134.6029]
[1770062955503,2.95109893,104.15,104.1,8.6527]
[1770062955704,2.95109893,104.15,104.08,465.37619893]
[1770062955705,20.32572398,104.16,104.09,134.613]
[1770062956706,20.32572398,104.16,104.11,8.6518]
[1770062956907,17.37462505,104.16,104.11,8.6518]
[1770062957113,2.95109893,104.17,104.11,8.6518]
[1770062958921,2.95109893,104.17,104.12,8.651]
[1770062959116,2.95109893,104.19,104.11,465.91689893]
[1770062959321,2.95109893,104.19,104.12,2.95109893]
[1770062959824,28.99587841,104.2,104.14,8.6494]
[1770062960019,2.95109893,104.19,104.14,8.6494]
[1770062960718,2.95109893,104.18,104.11,462.9658]
[1770062960922,2.95109893,104.17,104.11,328.38]
[1770062961323,2.95109893,104.16,104.12,8.6512]
[1770062962321,2.95109893,104.15,104.11,8.6519]
[1770062962514,2.95109893,104.14,104.07,137.57949893]
[1770062962918,20.37765371,104.12,104.05,23.61819495]
[1770062963229,2.95109893,104.11,104.04,467.56689893]
[1770062964217,2.95109893,104.1,104.04,338.5972]
[1770062964423,17.43696756,104.11,104.04,329.94]
[1770062965420,24.82540981,104.1,104.02,134.6941]
[1770062965726,24.82540981,104.1,104.02,466.2341]
[1770062966116,33.47850981,104.1,104.02,340.1988]
[1770062966319,17.45528372,104.09,104.02,340.1988]
[1770062966525,17.45528372,104.09,104.02,331.54]
[1770062967430,17.45528372,104.09,104.03,8.6584]
[1770062967927,17.47063654,104.11,104.04,8.6575]
[1770062968726,26.12263654,104.11,104.05,8.6569]
[1770062968920,17.47063654,104.11,104.05,8.6569]
[1770062969126,17.47063654,104.11,104.03,134.6907]
[1770062969323,8.6511,104.13,104.06,8.6561]
[1770062969633,17.47063654,104.13,104.05,134.6629]
[1770062970433,17.47063654,104.13,104.04,467.6376]
[1770062970641,17.47063654,104.13,104.04,332.96]
[1770062971634,7.38844225,104.14,104.04,332.96]
[1770062971635,26.12311747,104.12,104.05,8.6562]
[1770062971833,17.47181747,104.11,104.05,8.6562]
[1770062973338,26.12391747,104.11,104.05,8.6562]
[1770062974336,17.47181747,104.11,104.06,8.656]
[1770062974935,17.47181747,104.11,104.05,8.657]
[1770062975335,17.47181747,104.11,104.04,332.96]
[1770062975934,17.47181747,104.11,104.06,8.656]
[1770062976536,17.47181747,104.11,104.07,8.6552]
[1770062977134,17.47181747,104.11,104.05,8.6566]
[1770062977335,17.47181747,104.11,104.0,152.0419]
[1770062977537,17.46887328,104.08,103.98,142.13344225]
[1770062977736,17.46887328,104.08,103.99,470.7365]
[1770062977936,26.12367328,104.08,104.01,8.6595]